bitfinex-derivatives/quotes_SOLF0:USTF0_20241215
["timestamp","ask_amount","ask_price","bid_price","bid_amount"]
[1734247914104,2.14,217.45,217.39,1.4352]
[1734247914401,2.14,217.5,217.41,10.0456034]
[1734247915505,2.2994,217.49,217.42,2.3001]
[1734247916304,2.2995,217.48,217.42,2.3001]
[1734247916603,2.14,217.5,217.41,10.0456034]
[1734247916801,2.14,217.5,217.39,7.00259924]
[1734247917495,2.3001,217.43,217.39,7.00259924]
[1734247917899,2.3002,217.42,217.39,1.4352]
[1734247918098,2.14,217.45,217.39,1.4352]
[1734247918705,2.3001,217.43,217.39,1.4352]
[1734247919005,2.14,217.45,217.37,1.5353]
[1734247919206,2.14,217.45,217.36,5.61816817]
[1734247920604,2.14,217.45,217.35,2.3008]
[1734247920805,2.14,217.45,217.33,1.5493]
[1734247921201,2.14,217.45,217.28,10.0456034]
[1734247921202,10.0456034,217.44,217.28,10.0456034]
[1734247921402,2.14,217.45,217.29,2.3014]
[1734247921403,10.0456034,217.41,217.29,2.3014]
[1734247921708,2.3007,217.37,217.29,2.3014]
[1734247921905,2.14,217.36,217.29,2.3014]
[1734247922201,2.14,217.38,217.31,10.0456034]
[1734247922801,2.14,217.38,217.33,2.301]
[1734247923000,2.14,217.38,217.31,10.0456034]
[1734247924406,2.3007,217.36,217.31,10.0456034]
[1734247924700,2.14,217.38,217.31,10.0456034]
[1734247924901,2.14,217.4,217.31,10.0456034]
[1734247926611,2.3005,217.38,217.33,2.301]
[1734247926811,2.14,217.4,217.3,8.34778301]
[1734247928107,2.3009,217.35,217.3,8.34778301]
[1734247928305,2.14,217.34,217.3,8.34778301]
[1734247929505,2.14,217.34,217.3,6.88288301]
[1734247930113,4.4409,217.34,217.3,6.88288301]
[1734247930308,2.14,217.34,217.3,6.88288301]
[1734247930612,2.3013,217.3,217.26,1.5454]
[1734247930807,2.3013,217.3,217.28,5.53893036]
[1734247931510,2.14,217.34,217.25,3.1039]
[1734247932105,2.14,217.34,217.25,1.5536]
[1734247932106,2.3017,217.26,217.25,1.5536]
[1734247932303,2.14,217.29,217.21,5.51516998]
[1734247932508,2.14,217.28,217.21,5.51516998]
[1734247932912,2.14,217.28,217.2,13.0694034]
[1734247933613,2.14,217.28,217.16,10.0456034]
[1734247933813,2.14,217.28,217.16,11.5547034]
[1734247934011,2.3021,217.23,217.17,2.3027]
[1734247934905,2.3021,217.23,217.16,11.5547034]
[1734247934906,2.3021,217.23,217.16,13.8575034]
[1734247935105,2.3021,217.23,217.16,12.3484034]
[1734247935306,10.0456034,217.32,217.01,4.5074]
[1734247935307,10.0456034,217.22,217.01,4.5074]
[1734247935607,10.0456034,217.22,217.06,10.0456034]
[1734247935815,2.3025,217.2,217.1,5.43588358]
[1734247936014,2.14,217.19,217.11,6.8107]
[1734247936207,2.14,217.18,217.11,4.5074]
[1734247936812,2.3027,217.18,217.11,4.5074]
[1734247937112,10.0456034,217.22,217.11,4.5074]
[1734247937310,2.3026,217.18,217.07,12.3493034]
[1734247937510,10.0456034,217.22,217.1,10.0456034]
[1734247937706,2.14,217.21,217.1,10.0456034]
[1734247937908,2.14,217.2,217.11,3.0192]
[1734247938509,10.0456034,217.22,217.11,3.0192]
[1734247938714,2.3024,217.2,217.12,2.3032]
[1734247939310,2.14,217.19,217.13,2.3031]
[1734247939911,2.14,217.19,217.11,3.0192]
[1734247940110,4.4425,217.19,217.11,5.3225]
[1734247940308,4.4425,217.19,217.11,3.0192]
[1734247940309,2.14,217.19,217.11,3.0192]
[1734247941212,2.3026,217.18,217.11,5.3225]
[1734247941408,2.14,217.19,217.11,3.0192]
[1734247942616,2.3028,217.16,217.11,3.0192]
[1734247942815,2.14,217.15,217.11,1.5487]
[1734247943716,2.14,217.15,217.09,5.54386431]
[1734247944619,4.443,217.15,217.09,5.54386431]
[1734247945214,2.14,217.15,217.03,2.3041]
[1734247945410,12.1856034,217.15,217.04,5.65778447]
[1734247946516,2.14,217.14,217.04,5.65778447]
[1734247946717,2.3035,217.1,217.04,5.65778447]
[1734247946920,2.14,217.09,217.04,5.65778447]
[1734247947312,4.4436,217.09,217.04,5.65778447]
[1734247947513,4.4436,217.09,217.03,2.3041]
[1734247947514,2.14,217.09,217.03,2.3041]
[1734247947715,2.14,217.09,217.01,2.3043]
[1734247948618,2.3038,217.07,217.01,2.3043]
[1734247949021,12.1856034,217.09,216.97,14.4337034]
[1734247949219,2.14,217.08,216.99,5.648567]
[1734247949420,2.14,217.08,216.97,4.3881]
[1734247949620,2.14,217.08,216.97,6.6929]
[1734247950123,2.3038,217.07,216.97,12.23306407]
[1734247950321,2.14,217.08,216.98,2.3047]
[1734247950715,2.14,217.08,216.97,9.92826407]
[1734247950716,2.3042,217.03,216.93,10.0456034]
[1734247951016,4.4442,217.03,216.96,5.52284257]
[1734247951722,2.14,217.03,216.96,5.52284257]
[1734247951925,2.14,217.05,216.96,5.52284257]
[1734247952119,2.14,217.05,216.97,4.3922]
[1734247952625,10.0456034,217.09,216.97,4.3922]
[1734247952817,2.14,217.08,216.97,4.3922]
[1734247953018,10.0456034,217.09,216.97,4.3922]
[1734247953221,10.0456034,217.12,216.98,10.0456034]
[1734247953526,2.14,217.11,216.98,10.0456034]
[1734247953723,2.3035,217.1,217.02,2.91729]
[1734247953916,2.3035,217.1,217.02,0.61309]
[1734247954521,10.0456034,217.12,217.02,0.61309]
[1734247954721,4.4433,217.11,217.06,2.3039]
[1734247955016,4.4433,217.11,217.02,0.61309]
[1734247955421,2.3033,217.11,217.02,0.61309]
[1734247955722,2.14,217.1,217.02,0.61309]
[1734247956028,10.0456034,217.12,217.02,0.61309]
[1734247956328,2.14,217.11,217.02,0.61309]
[1734247956517,10.0456034,217.09,217.02,0.61309]
[1734247956722,2.14,217.11,217.02,0.61309]
[1734247956723,2.3041,217.04,217.02,0.61309]
[1734247956920,2.14,217.03,217.02,0.61309]
[1734247957323,10.0456034,217.06,217.02,0.61309]
[1734247957525,2.14,217.05,217.02,0.61309]
[1734247958123,12.3496034,217.06,217.02,0.61309]
[1734247958325,2.14,217.05,217.02,0.61309]
[1734247958530,4.444,217.05,217.02,0.61309]
[1734247959123,1.5574,217.14,217.02,0.61309]
[1734247959333,10.0456034,217.09,217.03,2.3042]
[1734247959524,2.14,217.08,217.03,2.3042]
[1734247959829,2.14,217.08,217.02,0.61309]
[1734247960027,2.14,217.07,217.02,0.61309]
[1734247960233,2.14,217.08,217.02,0.61309]
[1734247961928,10.0456034,217.12,217.02,0.61309]
[1734247962129,2.3036,217.09,217.02,2.91729]
[1734247962432,2.14,217.11,217.02,2.91729]
[1734247963228,2.3037,217.08,217.02,2.91729]
[1734247963429,2.14,217.07,217.03,2.3042]
[1734247963929,2.14,217.07,217.02,0.61309]
[1734247966629,2.14,217.07,217.04,2.304]
[1734247967334,2.14,217.07,217.05,2.304]
[1734247967528,1.5574,217.14,217.0,10.0456034]
[1734247967730,2.14,217.13,217.0,10.0456034]
[1734247967935,2.3032,217.12,217.0,10.0456034]
[1734247969026,2.3032,217.12,217.0,16.41039791]
[1734247969535,2.3032,217.12,217.01,4.73145192]
[1734247969834,2.3032,217.12,217.07,2.3037]
[1734247970134,2.14,217.11,217.07,2.3037]
[1734247970634,4.4433,217.11,217.07,2.3037]
[1734247971228,2.14,217.11,217.07,2.3037]
[1734247971431,2.14,217.11,217.08,2.3036]
[1734247972630,2.14,217.11,217.01,8.50479451]
[1734247973235,10.9018254,217.11,217.06,2.3038]
[1734247973433,10.9018254,217.11,217.04,6.4584254]
[1734247974030,8.5984254,217.11,217.04,6.4584254]
[1734247974229,8.5984254,217.11,217.07,2.3037]
[1734247974431,6.4584254,217.09,217.01,25.45917804]
[1734247974634,6.4584254,217.07,217.02,2.3043]
[1734247974830,8.5784254,217.07,217.02,2.3043]
[1734247975029,8.5784254,217.07,217.0,6.36479451]
[1734247975237,8.5784254,217.07,217.01,4.74136882]
[1734247975435,8.5784254,217.07,217.03,2.3042]
[1734247977042,8.5784254,217.07,217.04,2.304]
[1734247977340,2.12,217.07,217.04,2.304]
[1734247977741,8.7619254,217.09,217.04,2.304]
[1734247978040,2.12,217.08,217.04,2.304]
[1734247978540,4.4237,217.08,217.04,2.304]
[1734247978734,6.4584254,217.07,217.02,2.3042]
[1734247979643,6.4584254,217.05,216.97,4.3922]
[1734247979941,2.12,217.04,216.97,4.3922]
[1734247980133,6.4584254,217.03,216.96,6.4584254]
[1734247980743,2.3043,217.02,216.98,2.3046]
[1734247981144,6.4584254,217.05,216.96,6.4584254]
[1734247981350,6.4584254,217.05,216.94,19.09438353]
[1734247981351,2.12,217.04,216.98,6.4584254]
[1734247981541,2.12,217.04,216.94,25.45917804]
[1734247981740,6.4584254,217.03,216.95,4.75189389]
[1734247981943,6.4584254,217.03,216.97,5.49557161]
[1734247983347,6.4584254,217.01,216.93,7.2111454]
[1734247983544,2.12,217.0,216.93,7.2111454]
[1734247983946,2.3046,216.99,216.95,2.3049]
[1734247984146,2.12,217.0,216.93,0.75272]
[1734247984447,2.3048,216.97,216.93,0.75272]
[1734247984640,2.12,216.96,216.93,0.75272]
[1734247987038,14.95,216.96,216.93,0.75272]
[1734247987247,17.255,216.96,216.93,0.75272]
[1734247987843,14.95,216.96,216.93,0.75272]
[1734247988940,2.305,216.95,216.93,0.75272]
[1734247990053,8.7634254,216.95,216.93,0.75272]
[1734247990254,6.4584254,216.95,216.93,0.75272]
[1734247990759,14.95,216.96,216.93,0.75272]
[1734247991459,12.83,216.96,216.93,0.75272]
[1734247991861,12.83,216.96,216.94,6.4584254]
[1734247992953,12.83,216.96,216.95,2.305]
[1734247994654,3.92655313,216.96,216.95,2.305]
[1734247994860,1.58175313,216.96,216.95,2.305]
[1734247995359,1.58175313,216.96,216.95,8.7634254]
[1734247995660,1.58175313,216.96,216.95,2.305]
[1734247999760,5.46791398,217.13,216.95,2.12]
[1734247999956,6.4584254,217.06,217.0,2.3045]
[1734248000658,8.7623254,217.06,217.0,2.3045]
[1734248000858,6.4584254,217.04,216.97,6.4584254]
[1734248001254,2.3042,217.03,216.97,8.7632254]
[1734248001457,2.3042,217.03,216.97,2.3048]
[1734248001658,6.4584254,217.02,216.97,2.3048]
[1734248001860,8.7627254,217.02,216.97,2.3048]
[1734248002162,6.4584254,217.02,216.95,8.5784254]
[1734248002363,6.4584254,217.02,216.98,2.3047]
[1734248003066,6.45841133,217.02,216.99,2.3046]
[1734248003462,6.4584254,217.0,216.91,6.4584254]
[1734248003769,6.4584254,216.98,216.93,3.05792]
[1734248003964,8.5784254,216.98,216.93,0.75272]
[1734248004762,2.305,216.96,216.93,0.75272]
[1734248004966,6.4584254,216.96,216.93,0.75272]
[1734248006169,8.7633254,216.96,216.93,0.75272]
[1734248006565,6.4584254,216.96,216.93,0.75272]
[1734248007572,2.305,216.95,216.93,0.75272]
[1734248008169,6.4584254,216.94,216.93,0.75272]
[1734248009670,8.5784254,216.94,216.83,6.4584254]
[1734248009869,6.4584254,216.89,216.84,5.6518888]
[1734248010069,2.306,216.86,216.8,8.7650254]
[1734248010467,6.4584254,216.85,216.77,2.9112]
[1734248010776,6.4584254,216.83,216.76,6.4584254]
[1734248011072,19.36347452,217.02,216.77,5.45041122]
[1734248011073,6.4584254,216.81,216.77,5.45041122]
[1734248011263,8.5784254,216.81,216.67,27.0749231]
[1734248011466,6.4584254,216.76,216.66,6.38551494]
[1734248011665,6.4584254,216.76,216.71,5.655445]
[1734248011666,2.12,216.75,216.71,5.655445]
[1734248011867,2.12,216.75,216.65,2.9581]
[1734248012069,2.12,216.75,216.68,6.4584254]
[1734248012267,2.12,216.75,216.69,6.4584254]
[1734248012562,2.9896,216.87,216.73,6.4584254]
[1734248012765,2.3067,216.8,216.69,5.6609852]
[1734248012966,2.3,216.79,216.73,6.4584254]
[1734248013170,2.3,216.79,216.7,10.11932949]
[1734248013371,2.3,216.79,216.69,15.78031469]
[1734248013674,10.11932949,216.84,216.72,10.11932949]
[1734248013873,2.3,216.83,216.75,10.11932949]
[1734248014071,2.3,216.84,216.77,2.3069]
[1734248014468,13.93352949,216.87,216.75,10.11932949]
[1734248014671,4.6059,216.87,216.76,1.5478]
[1734248014868,2.3,216.87,216.76,3.8478]
[1734248015074,2.3,216.87,216.81,2.3065]
[1734248015775,2.3061,216.85,216.78,12.42612949]
[1734248015976,2.3,216.87,216.78,10.11932949]
[1734248016167,2.3,216.87,216.81,2.3065]
[1734248016469,4.6058,216.89,216.81,2.3065]
[1734248017076,2.3,216.89,216.8,2.3066]
[1734248017669,2.3,216.89,216.78,10.11932949]
[1734248017670,4.6058,216.89,216.81,2.3065]
[1734248018574,2.3,216.89,216.82,2.3063]
[1734248018777,1.5625,216.95,216.81,10.11932949]
[1734248018976,2.3,216.94,216.83,5.52666333]
[1734248019176,4.6052,216.94,216.87,2.3059]
[1734248019676,2.3,216.94,216.87,2.3059]
[1734248020680,2.3052,216.94,216.87,2.3059]
[1734248021578,1.4941,217.02,216.87,2.3059]
[1734248021579,1.4075,217.01,216.88,2.3]
[1734248021774,2.3046,216.99,216.91,2.3054]
[1734248022280,2.3046,216.99,216.88,5.2565]
[1734248022281,2.3,216.98,216.88,2.9565]
[1734248022474,10.11932949,216.97,216.85,2.3]
[1734248022782,10.11932949,216.94,216.83,5.52666333]
[1734248022985,2.3,216.93,216.83,5.52666333]
[1734248023583,2.3056,216.9,216.83,7.83296333]
[1734248024084,2.3,216.93,216.83,5.52666333]
[1734248024784,2.3,216.93,216.83,7.83286333]
[1734248025479,2.3059,216.88,216.83,5.52666333]
[1734248025878,10.11932949,216.91,216.83,5.52666333]
[1734248027181,10.11932949,216.91,216.73,1.5472]
[1734248027378,10.11932949,216.91,216.76,10.11932949]
[1734248027779,10.11932949,216.91,216.81,5.51286542]
[1734248031080,2.3,216.9,216.83,2.3063]
[1734248031280,1.5368,216.92,216.83,2.3063]
[1734248031486,2.3,216.89,216.83,2.3063]
[1734248032580,4.6057,216.89,216.83,2.3063]
[1734248034089,2.3058,216.88,216.82,12.42572949]
[1734248034482,10.11932949,216.94,216.82,10.11932949]
[1734248034686,2.3057,216.89,216.83,2.3062]
[1734248035383,2.3,216.88,216.81,5.51286542]
[1734248035687,2.3,216.87,216.81,5.51286542]
[1734248036484,2.3061,216.86,216.81,5.51286542]
[1734248036981,2.3,216.87,216.82,2.3064]
[1734248038483,4.6059,216.87,216.82,2.3064]
[1734248039083,2.3059,216.87,216.81,5.51286542]
[1734248039684,2.3,216.88,216.81,5.51286542]
[1734248039884,2.3061,216.85,216.81,5.51286542]
[1734248040285,2.3,216.88,216.81,5.51286542]
[1734248040286,2.306,216.87,216.81,5.51286542]
[1734248040585,2.3,216.88,216.81,5.51286542]
[1734248041179,2.3,216.9,216.82,10.11932949]
[1734248041989,2.3059,216.87,216.82,10.11932949]
[1734248042185,2.3,216.9,216.81,5.51286542]
[1734248043391,2.306,216.86,216.81,7.81926542]
[1734248043597,2.3,216.9,216.81,5.51286542]
[1734248043794,10.11932949,216.94,216.81,5.51286542]
[1734248044090,2.34,216.93,216.81,5.51286542]
[1734248044693,2.3062,216.84,216.81,5.51286542]
[1734248044887,2.34,216.86,216.81,5.51286542]
[1734248045286,2.34,216.86,216.74,1.554]
[1734248045490,2.34,216.86,216.76,5.61853724]
[1734248046492,2.3066,216.81,216.76,5.61853724]
[1734248046792,2.34,216.86,216.76,5.61853724]
[1734248046992,2.34,216.86,216.77,10.11932949]
[1734248047391,2.34,216.86,216.77,12.45932949]
[1734248047588,2.3062,216.84,216.8,2.3066]
[1734248047788,2.3062,216.84,216.77,12.45932949]
[1734248048294,2.34,216.86,216.77,10.11932949]
[1734248048497,2.34,216.86,216.76,5.61853724]
[1734248049196,2.3068,216.79,216.76,5.61853724]
[1734248049698,2.3069,216.78,216.76,5.61853724]
[1734248049899,2.34,216.81,216.73,0.27295]
[1734248050997,2.34,216.8,216.74,10.11932949]
[1734248051205,2.9413,216.87,216.74,10.11932949]
[1734248051496,2.34,216.86,216.74,10.11932949]
[1734248051698,2.34,216.85,216.74,10.11932949]
[1734248052100,2.9413,216.87,216.77,10.11932949]
[1734248052395,2.34,216.86,216.77,10.11932949]
[1734248052592,2.3064,216.83,216.78,2.3067]
[1734248052793,2.34,216.86,216.74,10.11932949]
[1734248053897,2.3065,216.82,216.76,2.3071]
[1734248054104,2.34,216.86,216.76,2.3071]
[1734248054502,2.3065,216.81,216.76,2.3071]
[1734248054703,2.34,216.86,216.74,10.11932949]
[1734248054901,12.45932949,216.85,216.73,0.27295]
[1734248055299,2.3071,216.76,216.73,0.27295]
[1734248055698,2.34,216.79,216.73,0.27295]
[1734248056400,2.3073,216.74,216.73,0.27295]
[1734248057205,2.3073,216.74,216.6,2.3088]
[1734248057206,2.3081,216.67,216.6,2.3088]
[1734248057511,2.34,216.68,216.61,10.11932949]
[1734248058207,2.34,216.68,216.58,1.4187]
[1734248058405,2.34,216.68,216.58,11.53802949]
[1734248059113,2.3082,216.65,216.58,11.53802949]
[1734248059311,2.34,216.68,216.58,11.53802949]
[1734248059706,2.34,216.68,216.55,3.7605]
[1734248059909,2.34,216.68,216.57,10.11932949]
[1734248061411,2.34,216.68,216.6,10.11932949]
[1734248061612,15.76910471,216.76,216.63,10.11932949]
[1734248061919,2.3076,216.71,216.64,2.3083]
[1734248062117,4.6476,216.71,216.64,2.3083]
[1734248062509,2.34,216.7,216.64,2.3083]
[1734248064916,4.6477,216.7,216.64,2.3083]
[1734248066222,2.34,216.7,216.66,2.3081]
[1734248068021,1.4894,216.77,216.66,10.11932949]
[1734248068212,2.34,216.76,216.66,10.11932949]
[1734248068613,2.34,216.76,216.64,1.5628]
[1734248068924,12.45932949,216.76,216.63,10.11932949]
[1734248069216,2.3076,216.72,216.63,10.11932949]
[1734248069416,2.34,216.71,216.63,10.11932949]
[1734248069816,4.6476,216.71,216.66,2.3081]
[1734248070014,2.34,216.71,216.61,1.5071]
[1734248070321,2.34,216.7,216.62,10.11932949]
[1734248070522,2.34,216.69,216.64,2.3083]
[1734248070828,2.34,216.68,216.64,2.3083]
[1734248071122,4.648,216.68,216.62,12.42782949]
[1734248071618,4.648,216.68,216.62,2.3085]
[1734248071818,2.34,216.68,216.61,1.5071]
[1734248072018,2.3081,216.67,216.61,3.8158]
[1734248072222,2.3081,216.67,216.61,2.3087]
[1734248072425,2.3087,216.61,216.53,2.3094]
[1734248072723,10.11932949,216.64,216.5,10.11932949]
[1734248072724,2.38,216.6,216.5,10.11932949]
[1734248073023,4.6888,216.6,216.54,2.3094]
[1734248073218,2.38,216.6,216.48,0.58786]
[1734248073415,2.38,216.6,216.48,10.70718949]
[1734248073617,2.38,216.59,216.51,10.11932949]
[1734248073819,2.38,216.58,216.51,10.11932949]
[1734248074125,2.38,216.59,216.51,10.11932949]
[1734248074522,2.38,216.6,216.51,10.11932949]
[1734248075420,2.38,216.6,216.56,2.3092]
[1734248075726,2.38,216.6,216.51,10.11932949]
[1734248076326,10.11932949,216.65,216.51,10.11932949]
[1734248076523,2.38,216.64,216.51,10.11932949]
[1734248076719,2.38,216.64,216.55,2.3092]
[1734248078322,2.3087,216.61,216.54,2.3094]
[1734248078522,2.3087,216.61,216.51,10.11932949]
[1734248079127,10.11932949,216.63,216.49,5.54379145]
[1734248080329,10.11932949,216.63,216.54,10.11932949]
[1734248080330,2.38,216.63,216.54,10.11932949]
[1734248080629,2.38,216.67,216.57,10.11932949]
[1734248081030,2.3082,216.66,216.6,2.3087]
[1734248081626,2.3082,216.66,216.57,10.11932949]
[1734248082629,2.3082,216.66,216.59,2.3088]
[1734248083128,2.3082,216.66,216.6,2.3088]
[1734248083333,2.38,216.67,216.57,10.11932949]
[1734248084729,4.688,216.67,216.6,2.3088]
[1734248086032,4.688,216.67,216.57,10.11932949]
[1734248086327,2.308,216.67,216.61,2.3086]
[1734248087733,2.3082,216.66,216.57,10.11932949]
[1734248088736,2.3082,216.66,216.6,2.3088]
[1734248089033,2.3081,216.67,216.57,10.11932949]
[1734248089331,2.38,216.68,216.6,2.3088]
[1734248089536,2.3083,216.65,216.57,10.11932949]
[1734248089834,2.3083,216.65,216.59,2.3088]
[1734248090832,2.38,216.68,216.6,2.3088]
[1734248091031,2.3081,216.66,216.6,7.83553549]
[1734248091533,2.38,216.68,216.57,12.42832949]
[1734248091926,2.3084,216.64,216.58,2.309]
[1734248092541,2.3085,216.63,216.57,2.3091]
[1734248092933,2.38,216.62,216.55,2.9009]
[1734248093233,2.3087,216.61,216.55,2.9009]
[1734248093630,2.38,216.62,216.55,2.9009]
[1734248094037,2.38,216.62,216.57,2.3091]
[1734248094236,2.38,216.69,216.57,10.11932949]
[1734248094833,2.3083,216.65,216.6,2.3088]
[1734248095737,2.38,216.69,216.6,2.3088]
[1734248095939,2.38,216.69,216.57,10.11932949]
[1734248096138,2.38,216.69,216.59,2.3089]
[1734248096335,2.38,216.69,216.56,5.50754806]
[1734248097241,2.3086,216.63,216.56,7.81664806]
[1734248097443,2.38,216.69,216.56,7.81664806]
[1734248097444,2.38,216.64,216.56,5.50754806]
[1734248098935,2.38,216.64,216.54,10.11932949]
[1734248099131,2.38,216.64,216.52,0.294]
[1734248099337,2.3089,216.59,216.53,2.3095]
[1734248099843,2.38,216.64,216.54,10.11932949]
[1734248100345,2.38,216.64,216.59,2.3089]
[1734248100640,2.38,216.64,216.57,10.11932949]
[1734248100946,2.38,216.64,216.59,2.3089]
[1734248101246,2.38,216.64,216.57,10.11932949]
[1734248102347,2.48,216.68,216.57,10.11932949]
[1734248102747,2.3081,216.66,216.6,2.3088]
[1734248103241,2.3083,216.65,216.6,6.48465461]
[1734248104246,6.48465461,216.65,216.53,5.55765232]
[1734248104449,6.48465461,216.65,216.57,6.48465461]
[1734248105045,6.48465461,216.65,216.57,8.79375461]
[1734248105848,2.3086,216.63,216.57,8.79375461]
[1734248106046,4.7886,216.63,216.57,8.79375461]
[1734248106451,4.7886,216.63,216.55,6.48465461]
[1734248106452,8.96465461,216.63,216.55,6.48465461]
[1734248106747,6.48465461,216.61,216.55,6.48465461]
[1734248107649,6.48465461,216.61,216.53,7.86705232]
[1734248107849,2.48,216.63,216.52,0.294]
[1734248107850,6.48465461,216.57,216.52,0.294]
[1734248108847,8.79395461,216.55,216.52,0.294]
[1734248109044,6.48465461,216.55,216.52,0.294]
[1734248109455,2.3095,216.53,216.52,0.294]
[1734248109748,2.48,216.53,216.52,0.294]
[1734248110252,2.48,216.54,216.52,0.294]
[1734248110553,6.48465461,216.58,216.52,0.294]
[1734248110746,2.48,216.57,216.52,0.294]
[1734248111849,2.48,216.57,216.52,2.6036]
[1734248112050,1.4189,216.62,216.52,0.294]
[1734248112252,2.48,216.61,216.52,0.294]
[1734248112647,4.7887,216.61,216.55,2.3093]
[1734248113453,10.14059292,216.67,216.54,10.14059292]
[1734248113856,2.48,216.66,216.54,10.14059292]
[1734248114256,2.3085,216.63,216.57,2.3091]
[1734248115649,10.14059292,216.67,216.57,2.3091]
[1734248115850,2.48,216.65,216.54,10.14059292]
[1734248118352,2.48,216.65,216.56,2.3093]
[1734248118958,2.3085,216.63,216.57,2.3091]
[1734248119758,2.3085,216.63,216.57,7.8180111]
[1734248121652,10.14059292,216.63,216.52,2.948]
[1734248121854,10.14059292,216.6,216.52,1.4635]
[1734248122154,2.48,216.59,216.52,1.4635]
[1734248122660,2.48,216.59,216.47,1.4794]
[1734248122853,2.48,216.59,216.47,2.9634]
[1734248123054,2.3093,216.55,216.5,2.3098]
[1734248123259,1.5263,216.66,216.47,2.9634]
[1734248123260,2.48,216.54,216.47,2.9634]
[1734248124256,2.48,216.57,216.47,2.9634]
[1734248124458,2.48,216.57,216.49,10.14059292]
[1734248125662,2.48,216.57,216.53,2.3095]
[1734248125855,2.48,216.57,216.49,10.14059292]
[1734248126255,2.48,216.57,216.53,2.3095]
[1734248127464,2.48,216.61,216.52,10.14059292]
[1734248127662,4.7886,216.62,216.52,10.14059292]
[1734248128259,2.48,216.62,216.52,10.14059292]
[1734248128460,2.3089,216.6,216.5,10.14059292]
[1734248128663,2.3089,216.6,216.55,2.3093]
[1734248128863,2.3089,216.6,216.5,10.14059292]
[1734248129672,2.3089,216.6,216.55,2.3093]
[1734248130064,4.7886,216.62,216.55,2.3093]
[1734248130268,2.48,216.62,216.53,10.14059292]
[1734248131574,2.48,216.62,216.58,2.3089]
[1734248132266,2.48,216.62,216.53,10.14059292]
[1734248133669,4.7886,216.62,216.53,10.14059292]
[1734248134163,13.85,216.87,216.56,10.14059292]
[1734248134363,10.14059292,216.72,216.58,10.14059292]
[1734248134568,2.308,216.68,216.62,2.3084]
[1734248134764,2.42,216.71,216.58,10.14059292]
[1734248135974,2.42,216.7,216.65,2.3082]
[1734248136871,2.3076,216.71,216.65,2.3082]
[1734248137069,4.7276,216.71,216.65,2.3082]
[1734248138471,2.3078,216.69,216.63,2.3084]
[1734248139066,2.42,216.71,216.62,2.3085]
[1734248139067,2.3079,216.68,216.62,2.3085]
[1734248139274,2.3079,216.68,216.64,5.61160551]
[1734248139577,2.3078,216.69,216.64,5.61160551]
[1734248140272,2.42,216.71,216.57,2.9082]
[1734248140273,2.42,216.71,216.58,10.14059292]
[1734248140977,2.42,216.71,216.62,5.45811339]
[1734248141481,2.3079,216.68,216.62,5.45811339]
[1734248141781,4.7279,216.68,216.62,5.45811339]
[1734248141979,4.7279,216.68,216.62,7.76661339]
[1734248143476,4.7279,216.68,216.63,2.3084]
[1734248143975,62.53761067,216.77,216.62,5.45811339]
[1734248144283,12.56059292,216.76,216.62,5.45811339]
[1734248144790,62.53761067,216.77,216.65,10.14059292]
[1734248145081,2.42,216.76,216.68,10.14059292]
[1734248145285,56.93320876,216.77,216.68,10.14059292]
[1734248145480,2.42,216.76,216.68,10.14059292]
[1734248145681,59.35320876,216.77,216.68,10.14059292]
[1734248145881,2.42,216.77,216.68,10.14059292]
[1734248146078,10.14059292,216.85,216.71,10.14059292]
[1734248146283,2.42,216.84,216.71,10.14059292]
[1734248146883,2.42,216.84,216.74,12.44779292]